bitfinex/quotes_BTCUSD_20220218
["timestamp","ask_amount","ask_price","bid_price","bid_amount"]
[1645196996289,0.000105,40472.0,40469.0,0.25006668]
[1645196996489,0.56873623,40473.0,40469.0,0.25006668]
[1645196996688,0.061827,40471.0,40469.0,0.25006668]
[1645196996991,0.061827,40471.0,40461.0,0.107228]
[1645196997188,0.123657,40471.0,40461.0,0.0454]
[1645196997690,0.00153899,40464.0,40461.0,0.0454]
[1645196997987,0.00153899,40464.0,40462.0,0.26804187]
[1645196999043,0.123657,40471.0,40464.0,1.314]
[1645196999044,0.061823,40470.0,40464.0,1.314]
[1645196999246,0.00010548,40472.0,40466.0,1.414]
[1645196999444,0.00010548,40472.0,40471.0,0.19808219]
[1645196999751,0.00010548,40472.0,40471.0,1.51208219]
[1645196999752,5.48e-06,40472.0,40471.0,1.51208219]
[1645196999947,5.48e-06,40472.0,40471.0,1.83439115]
[1645197000149,0.0021,40485.0,40474.0,0.15]
[1645197000352,0.0011,40491.0,40472.0,1.514]
[1645197000353,0.0011,40491.0,40484.0,1.314]
[1645197000548,0.05,40492.0,40488.0,1.314]
[1645197000748,0.0021,40495.0,40492.0,1.314]
[1645197000946,0.0132,40499.0,40493.0,1.15]
[1645197001147,0.0132,40499.0,40492.0,1.314]
[1645197001148,0.27947281,40499.0,40492.0,1.314]
[1645197001348,0.0132,40499.0,40494.0,0.22635916]
[1645197001949,0.0132,40499.0,40493.0,0.061773]
[1645197002148,0.0132,40499.0,40492.0,0.0029]
[1645197002149,0.063887,40496.0,40492.0,0.0029]
[1645197002453,0.063887,40496.0,40490.0,0.0454]
[1645197002895,0.0021,40496.0,40490.0,0.0454]
[1645197003093,0.0021,40496.0,40494.0,0.19738429]
[1645197003693,0.0021,40496.0,40489.0,0.15]
[1645197003895,0.0061503,40495.0,40489.0,0.15]
[1645197004095,0.0061503,40495.0,40478.0,0.3]
[1645197004295,0.06180018,40493.0,40479.0,0.0454]
[1645197004495,0.123609,40490.0,40478.0,0.3]
[1645197004695,0.123609,40490.0,40481.0,0.19997982]
[1645197005000,0.05,40490.0,40481.0,0.19997982]
[1645197005194,0.0021,40496.0,40481.0,0.19997982]
[1645197005393,0.061787,40493.0,40485.0,0.2351418]
[1645197005594,0.0021,40496.0,40485.0,1.5491418]
[1645197005793,0.0021,40496.0,40486.0,0.003]
[1645197006533,0.0021,40496.0,40486.0,1.678774]
[1645197006534,6.184e-05,40493.0,40486.0,1.678774]
[1645197006737,6.184e-05,40493.0,40492.0,0.23959606]
[1645197007034,0.0021,40496.0,40492.0,0.23959606]
[1645197007035,0.66078075,40517.0,40492.0,0.4619397]
[1645197007235,0.123559,40502.0,40493.0,1.3]
[1645197007433,0.123559,40502.0,40492.0,0.4619397]
[1645197007639,6.174e-05,40495.0,40492.0,0.4619397]
[1645197007833,6.174e-05,40495.0,40492.0,1.7759397]
[1645197008033,6.174e-05,40495.0,40493.0,0.3]
[1645197008435,0.31349791,40505.0,40493.0,0.3]
[1645197008634,0.31349791,40505.0,40503.0,0.23941232]
[1645197008635,0.26349791,40505.0,40503.0,0.23941232]
[1645197008835,0.31349791,40505.0,40494.0,0.0028]
[1645197009235,0.31349791,40505.0,40499.0,1.50486148]
[1645197009634,0.173553,40505.0,40499.0,1.50486148]
[1645197009834,0.123553,40505.0,40504.0,0.23052338]
[1645197010034,0.123553,40505.0,40499.0,1.50486148]
[1645197010486,0.173553,40505.0,40499.0,1.50486148]
[1645197010685,0.4097972,40504.0,40499.0,1.50486148]
[1645197010885,0.4536469,40504.0,40499.0,1.50486148]
[1645197011085,0.4536469,40504.0,40499.0,1.74668529]
[1645197011286,0.39186443,40504.0,40499.0,1.74668529]
[1645197011488,0.061776,40503.0,40499.0,1.74668529]
[1645197011688,0.061776,40503.0,40499.0,1.50486148]
[1645197011888,0.061785,40502.0,40499.0,1.50486148]
[1645197012091,0.23860284,40501.0,40499.0,1.50486148]
[1645197012288,0.36217784,40501.0,40499.0,1.50486148]
[1645197012489,0.36217784,40501.0,40500.0,0.00164258]
[1645197012691,0.67239423,40501.0,40500.0,0.00164258]
[1645197012893,0.77239423,40501.0,40500.0,0.00164258]
[1645197013090,0.77239423,40501.0,40500.0,4.258e-05]
[1645197013091,0.45760828,40501.0,40500.0,4.258e-05]
[1645197013290,0.56375858,40501.0,40500.0,4.258e-05]
[1645197013792,0.60915858,40501.0,40500.0,4.258e-05]
[1645197014034,1.46292096,40501.0,40499.0,1.13406606]
[1645197014235,1.15,40499.0,40481.0,0.3]
[1645197014436,0.21352006,40491.0,40490.0,0.38163532]
[1645197014637,0.5378392,40491.0,40490.0,0.01074932]
[1645197014837,0.32314907,40484.0,40480.0,0.1]
[1645197015035,0.5751198,40484.0,40476.0,0.1]
[1645197015440,0.123633,40482.0,40476.0,0.1]
[1645197015638,0.06182169,40481.0,40476.0,0.1]
[1645197016037,0.06182169,40481.0,40468.0,0.103]
[1645197016235,0.06182169,40481.0,40470.0,0.19929073]
[1645197016735,2.19791474,40479.0,40470.0,0.19929073]
[1645197017138,0.061822,40476.0,40470.0,0.19929073]
[1645197017336,0.133444,40480.0,40470.0,0.19929073]
[1645197017337,0.123644,40480.0,40470.0,0.19929073]
[1645197017536,0.25197073,40484.0,40470.0,0.26109973]
[1645197017793,0.107209,40484.0,40482.0,0.00163212]
[1645197017993,0.107209,40484.0,40483.0,0.21523119]
[1645197018187,0.0454,40484.0,40483.0,0.0033528]
[1645197019389,0.0454,40484.0,40483.0,0.00169869]
[1645197019788,0.1454,40484.0,40483.0,0.00169869]
[1645197019989,0.1454,40484.0,40468.0,0.003]
[1645197020189,0.123664,40480.0,40468.0,0.003]
[1645197020388,0.061832,40480.0,40468.0,0.003]
[1645197020694,0.2517363,40474.0,40467.0,0.1]
[1645197020887,0.2517363,40474.0,40466.0,0.22491264]
[1645197021287,0.061829,40473.0,40466.0,0.22491264]
[1645197021736,0.061829,40473.0,40467.0,0.23230117]
[1645197022136,0.111829,40473.0,40467.0,0.23230117]
[1645197022937,0.111829,40473.0,40468.0,0.1]
[1645197023342,0.111829,40473.0,40469.0,0.25951141]
[1645197023540,0.74240263,40486.0,40469.0,0.25951141]
[1645197023541,0.061813,40483.0,40469.0,0.25951141]
[1645197023743,0.061805,40482.0,40470.0,0.329185]
[1645197023941,0.00010263,40486.0,40472.0,1.414]
[1645197024141,0.00010263,40486.0,40472.0,1.3169]
[1645197024341,0.00010263,40486.0,40481.0,0.22246348]
[1645197024541,0.06191063,40486.0,40481.0,0.22246348]
[1645197024742,0.06190228,40486.0,40481.0,0.22246348]
[1645197024940,0.06190228,40486.0,40484.0,0.1]
[1645197025591,0.061804,40485.0,40484.0,0.1]
[1645197025790,9.382e-05,40487.0,40484.0,0.1]
[1645197025993,9.382e-05,40487.0,40482.0,0.1]
[1645197026191,9.382e-05,40487.0,40482.0,0.1028]
[1645197026791,0.061801,40487.0,40484.0,0.22921342]
[1645197026992,9.382e-05,40487.0,40484.0,0.32921342]
[1645197027791,0.00175102,40485.0,40484.0,0.32921342]
[1645197027992,0.061796,40489.0,40485.0,0.6]
[1645197028192,0.00010219,40488.0,40485.0,0.6]
[1645197028392,0.00010219,40488.0,40486.0,0.24269752]
[1645197028793,0.00010219,40488.0,40486.0,0.34269752]
[1645197029049,0.061791,40494.0,40487.0,0.3]
[1645197029252,0.061791,40494.0,40486.0,0.1]
[1645197029253,0.4,40493.0,40486.0,0.1]
[1645197029454,2.37481711,40489.0,40486.0,0.1]
[1645197029648,0.061806,40488.0,40486.0,0.1]
[1645197029847,0.0454,40489.0,40473.0,0.7722]
[1645197030047,0.0454,40489.0,40478.0,0.20087551]
[1645197030247,0.33049363,40486.0,40478.0,0.20087551]
[1645197030447,0.173613,40486.0,40478.0,0.20087551]
[1645197030846,0.173613,40486.0,40483.0,0.1]
[1645197031448,0.123613,40485.0,40483.0,0.1]
[1645197031747,0.173613,40486.0,40484.0,0.329185]
[1645197031748,0.123613,40486.0,40484.0,0.329185]
[1645197031949,0.2329,40501.0,40485.0,1.15]
[1645197031950,0.325,40500.0,40485.0,1.15]
[1645197032150,0.375,40500.0,40486.0,1.643185]
[1645197032346,0.375,40500.0,40483.0,0.24668244]
[1645197032347,0.325,40500.0,40483.0,0.24668244]
[1645197032547,0.111778,40496.0,40491.0,0.21375094]
[1645197032801,0.00136344,40493.0,40492.0,0.21276569]
[1645197033193,0.00136344,40493.0,40486.0,0.15]
[1645197033394,0.00136344,40493.0,40486.0,0.1954]
[1645197033595,0.00136344,40493.0,40486.0,0.15]
[1645197033994,0.00136344,40493.0,40487.0,0.1]
[1645197034394,0.00136344,40493.0,40487.0,0.33776263]
[1645197034595,0.00136344,40493.0,40487.0,0.1]
[1645197034596,0.061793,40492.0,40487.0,0.1]
[1645197034795,0.061793,40492.0,40491.0,0.1]
[1645197035095,0.00136344,40493.0,40491.0,0.1]
[1645197035494,0.00136344,40493.0,40491.0,0.35578522]
[1645197037044,0.00136344,40493.0,40491.0,0.25578522]
[1645197037845,0.06190006,40494.0,40491.0,0.25578522]
[1645197038245,0.00011006,40494.0,40491.0,0.25578522]
[1645197039144,0.00011006,40494.0,40493.0,0.25730108]
[1645197039946,0.00011006,40494.0,40493.0,0.35730108]
[1645197040146,0.00011006,40494.0,40493.0,0.1]
[1645197040588,0.28515725,40494.0,40493.0,0.1]
[1645197040790,0.28504719,40494.0,40493.0,0.1]
[1645197040986,0.28504719,40494.0,40489.0,0.00124464]
[1645197041186,0.34685247,40494.0,40489.0,0.00124464]
[1645197041387,0.34685247,40494.0,40489.0,0.23843786]
[1645197041388,0.0618,40492.0,40489.0,0.23843786]
[1645197041990,0.34684919,40494.0,40489.0,0.33843786]
[1645197042187,0.061802,40494.0,40489.0,0.33843786]
[1645197042586,0.11179,40497.0,40493.0,0.00301664]
[1645197042587,0.05,40497.0,40493.0,0.00301664]
[1645197042789,0.061788,40495.0,40493.0,0.00301664]
[1645197043190,0.361788,40495.0,40493.0,0.00301664]
[1645197043390,0.061788,40495.0,40493.0,0.00301664]
[1645197043590,0.185386,40495.0,40493.0,0.00301664]
[1645197043792,0.123585,40495.0,40493.0,0.00301664]
[1645197044038,0.185382,40495.0,40493.0,0.00301664]
[1645197044743,0.056788,40495.0,40493.0,0.00301664]
[1645197047540,0.056788,40495.0,40493.0,0.00454023]
[1645197047794,0.00010761,40496.0,40493.0,0.00454023]
[1645197047990,0.00010761,40496.0,40493.0,0.10454023]
[1645197048588,0.33771925,40496.0,40493.0,0.10454023]
[1645197048988,0.123575,40496.0,40495.0,0.1]
[1645197049190,0.05,40496.0,40495.0,0.1]
[1645197049592,0.05,40496.0,40495.0,0.09966277]
[1645197050789,9.33e-05,40498.0,40495.0,0.09966277]
[1645197050991,0.025,40500.0,40495.0,0.09966277]
[1645197051191,9.33e-05,40498.0,40495.0,0.09966277]
[1645197051391,9.33e-05,40498.0,40496.0,0.19961774]
[1645197051837,9.33e-05,40498.0,40497.0,0.26434535]
[1645197052439,0.025,40500.0,40497.0,0.26426735]
[1645197052840,0.025,40500.0,40497.0,0.26346912]
[1645197053039,0.025,40500.0,40497.0,0.36194761]
[1645197053839,0.025,40500.0,40498.0,0.1]
[1645197054439,0.32911619,40500.0,40498.0,0.1]
[1645197054640,0.025,40500.0,40498.0,0.1]
[1645197054845,0.025,40500.0,40499.0,0.1]
[1645197055690,0.31123524,40500.0,40499.0,0.1]
[1645197055891,0.025,40500.0,40497.0,0.1]
[1645197056894,0.025,40500.0,40496.0,0.10153026]
[1645197057895,0.00083186,40499.0,40497.0,0.1]
[1645197058397,0.00083186,40499.0,40497.0,0.09923595]
[1645197058595,0.00083186,40499.0,40497.0,0.09765346]
[1645197058795,0.00083186,40499.0,40491.0,0.1]
[1645197059035,0.061795,40496.0,40491.0,0.09767675]
[1645197059236,0.20143477,40492.0,40491.0,0.09688171]
[1645197059437,0.20143477,40492.0,40491.0,0.09534909]
[1645197059438,0.23507586,40492.0,40491.0,0.09534909]
[1645197059639,0.23507586,40492.0,40491.0,0.09378454]
[1645197059640,0.68047586,40492.0,40491.0,0.09378454]
[1645197059835,0.68047586,40492.0,40470.0,0.65]
[1645197059836,1.15,40491.0,40470.0,0.65]
[1645197060041,0.3099,40490.0,40471.0,0.0029]
[1645197060234,0.4053,40490.0,40471.0,0.0029]
[1645197060437,0.6053,40490.0,40471.0,0.0029]
[1645197060637,0.123645,40481.0,40471.0,0.00137621]
[1645197060935,0.123645,40481.0,40466.0,0.23726345]
[1645197060936,0.0591,40480.0,40466.0,0.23726345]
[1645197061137,0.0591,40480.0,40462.0,1.314]
[1645197061138,1.37678363,40479.0,40462.0,1.31296776]
[1645197061336,0.061824,40475.0,40462.0,1.31223088]
[1645197061538,0.061824,40475.0,40465.0,0.35135841]
[1645197061737,0.123648,40475.0,40465.0,0.34908825]
[1645197061936,0.123648,40475.0,40465.0,0.34834775]
[1645197062138,0.173648,40475.0,40465.0,0.34834775]
[1645197062336,0.111824,40475.0,40465.0,0.34834775]
[1645197062542,1.91203575,40466.0,40465.0,0.34834775]
[1645197062816,0.05,40475.0,40469.0,0.01403307]
[1645197062817,0.061826,40472.0,40469.0,0.01403307]
[1645197063009,0.05,40475.0,40469.0,0.23587239]
[1645197063206,0.0454,40479.0,40470.0,0.329185]
[1645197063407,0.0454,40479.0,40469.0,1.54987239]
[1645197063608,0.05,40485.0,40469.0,1.54987239]
[1645197063609,0.05,40485.0,40471.0,1.314]
[1645197063807,0.32898082,40490.0,40474.0,1.314]
[1645197064006,0.05,40493.0,40482.0,0.19016089]
[1645197064807,0.0479141,40493.0,40483.0,1.05]
[1645197065008,0.0479141,40493.0,40489.0,0.23889742]
[1645197065213,0.00283416,40495.0,40489.0,0.23889742]
[1645197065410,0.00283416,40495.0,40490.0,0.0011]
[1645197066011,0.00283416,40495.0,40479.0,0.1]
[1645197066012,0.06462716,40495.0,40481.0,0.15]
[1645197066208,0.00283416,40495.0,40484.0,0.2366644]
[1645197066856,0.00011086,40490.0,40484.0,0.2366644]
[1645197067055,0.00011086,40490.0,40485.0,0.19078871]
[1645197067660,0.06462416,40495.0,40485.0,0.19078871]
[1645197067661,0.00283416,40495.0,40485.0,0.19078871]
[1645197068057,0.01,40496.0,40485.0,0.19078871]
[1645197068257,0.00010637,40490.0,40485.0,0.19078871]
[1645197068759,0.06190737,40490.0,40485.0,0.19078871]
[1645197068957,0.061801,40490.0,40485.0,0.19078871]
[1645197069158,0.061801,40490.0,40484.0,0.00126812]
[1645197069357,0.06190737,40490.0,40484.0,0.00126812]
[1645197069557,0.11190737,40490.0,40484.0,0.00126812]
[1645197070160,0.111801,40490.0,40484.0,0.00126812]
[1645197070391,0.00010637,40489.0,40484.0,0.00126812]
[1645197070586,0.061803,40488.0,40484.0,0.00126812]
[1645197070988,0.061807,40487.0,40484.0,0.00126812]
[1645197071391,0.121103,40488.0,40484.0,0.00126812]
[1645197071392,0.0593,40488.0,40484.0,0.00126812]
[1645197071587,0.00940647,40488.0,40484.0,0.00126812]
[1645197072490,0.0093,40488.0,40487.0,0.00160519]
[1645197072894,0.00939795,40488.0,40487.0,0.00160519]
[1645197073088,9.795e-05,40488.0,40487.0,0.00160519]
[1645197073692,0.123599,40490.0,40486.0,0.00011732]
[1645197073889,0.35,40489.0,40486.0,0.00011732]
[1645197074141,0.50925165,40488.0,40486.0,0.00011732]
[1645197074339,0.285448,40488.0,40486.0,0.00011732]
[1645197074543,0.247261,40488.0,40486.0,0.00011732]
[1645197074741,0.061811,40487.0,40486.0,0.00011732]
[1645197074941,0.185448,40488.0,40486.0,0.00011732]
[1645197076343,0.247253,40488.0,40486.0,0.00011732]
[1645197076943,0.247253,40488.0,40486.0,7.32e-06]
[1645197076944,0.64854969,40487.0,40486.0,7.32e-06]
[1645197077148,0.84662624,40487.0,40485.0,0.00152408]
[1645197077345,0.3,40486.0,40485.0,0.00152408]
[1645197077546,0.3454,40486.0,40485.0,0.00152408]
[1645197077798,0.061828,40480.0,40469.0,0.01403307]
[1645197077994,0.35361914,40478.0,40469.0,0.01403307]
[1645197078199,0.0454,40477.0,40469.0,0.01403307]
[1645197078392,2.42637745,40472.0,40469.0,0.01403307]
[1645197078796,2.47637745,40472.0,40469.0,0.01403307]
[1645197079394,0.111832,40472.0,40469.0,0.01403307]
[1645197079993,0.111832,40472.0,40469.0,0.00068107]
[1645197080798,0.06183,40471.0,40469.0,0.00068107]
[1645197082146,0.111832,40472.0,40469.0,0.26831127]
[1645197082346,0.111832,40472.0,40471.0,0.00160038]
[1645197082548,0.11193062,40472.0,40471.0,0.00160038]
[1645197083149,0.41193062,40472.0,40471.0,0.00160038]
[1645197083354,0.45733062,40472.0,40471.0,0.00160038]
[1645197083549,0.457232,40472.0,40471.0,0.00160038]
[1645197084349,0.49087309,40472.0,40471.0,0.00160038]
[1645197084551,0.49087309,40472.0,40471.0,3.8e-07]
[1645197084552,0.69087309,40472.0,40471.0,3.8e-07]
[1645197085051,0.87641609,40472.0,40471.0,3.8e-07]
[1645197085490,0.87641609,40472.0,40469.0,0.00068107]
[1645197085689,0.03364109,40470.0,40469.0,0.00068107]
[1645197085895,1.12032109,40470.0,40469.0,0.00068107]
[1645197086092,1.211852,40469.0,40466.0,0.56131574]
[1645197086395,0.03364109,40467.0,40466.0,0.56131574]
[1645197086590,0.37904109,40467.0,40466.0,0.56131574]
[1645197086791,1.15,40466.0,40462.0,9.655e-05]
[1645197087092,1.15,40466.0,40444.0,0.001]
[1645197087093,0.13364109,40463.0,40444.0,0.001]
[1645197087294,0.52534497,40460.0,40444.0,0.25074077]
[1645197087491,0.123732,40457.0,40452.0,0.00038628]
[1645197087691,0.3546,40456.0,40452.0,0.00038628]
[1645197087891,0.03364109,40453.0,40452.0,0.00038628]
[1645197088091,0.07904109,40453.0,40452.0,0.00038628]
[1645197088291,0.061868,40452.0,40444.0,0.001]
[1645197088596,0.14090909,40452.0,40450.0,9.679e-05]
[1645197089045,0.44090909,40452.0,40450.0,9.679e-05]
[1645197089445,0.44090909,40452.0,40441.0,0.00036956]
[1645197089647,0.44090909,40452.0,40449.0,9.708e-05]
[1645197090051,0.21564289,40451.0,40449.0,9.708e-05]
[1645197090247,1.34961438,40450.0,40449.0,9.708e-05]
[1645197090447,1.34961438,40450.0,40449.0,7.08e-06]
[1645197090448,1.27032109,40450.0,40449.0,7.08e-06]
[1645197090649,1.37032109,40450.0,40449.0,7.08e-06]
[1645197090946,1.37032109,40450.0,40441.0,0.00036956]
[1645197090947,0.061883,40448.0,40441.0,0.00036956]
[1645197091151,0.03364109,40444.0,40441.0,0.00036956]
[1645197091348,0.03364109,40442.0,40431.0,0.01172734]
[1645197091547,0.411885,40443.0,40431.0,0.01172734]
[1645197091749,0.45,40443.0,40431.0,0.01172734]
[1645197092449,0.061885,40439.0,40434.0,0.35475654]
[1645197092652,0.05,40443.0,40434.0,0.35475654]
[1645197092919,0.0454,40442.0,40431.0,0.01172734]
[1645197093120,0.3454,40442.0,40431.0,0.01172734]
[1645197093325,0.03364109,40438.0,40436.0,0.00010249]
[1645197093519,0.4454,40442.0,40436.0,0.00010249]
[1645197093520,0.07904109,40437.0,40436.0,0.00010249]
[1645197093919,0.37904109,40437.0,40430.0,0.00041002]
[1645197094119,0.03364109,40433.0,40430.0,0.00041002]
[1645197094322,0.03364109,40431.0,40429.0,0.0010436]
[1645197094517,0.0454,40430.0,40429.0,0.0010436]
[1645197095322,1.15,40429.0,40425.0,0.00021021]
[1645197095518,1.15,40427.0,40421.0,0.05334973]
[1645197095719,0.3454,40426.0,40421.0,0.05334973]
[1645197095921,1.18668,40426.0,40421.0,0.05334973]
[1645197096117,0.1943299,40424.0,40421.0,0.05357149]
[1645197096323,0.34020928,40422.0,40421.0,0.05357149]
[1645197096542,0.77188004,40422.0,40421.0,0.05357149]
[1645197096744,1.15,40421.0,40417.0,0.0012679]
[1645197096950,0.0454,40420.0,40417.0,0.0012679]
[1645197097142,0.0454,40420.0,40417.0,0.00171142]
[1645197097341,0.157325,40420.0,40417.0,0.00171142]
[1645197097541,0.3,40419.0,40415.0,0.0014915]
[1645197097742,0.107325,40420.0,40415.0,0.0014915]
[1645197097941,0.0454,40420.0,40415.0,0.0014915]
[1645197098140,0.0454,40420.0,40415.0,0.32559448]
[1645197098343,0.123814,40425.0,40415.0,0.32559448]
[1645197098541,0.123814,40425.0,40415.0,0.32648152]
[1645197098742,0.123808,40423.0,40415.0,0.00248074]
[1645197099140,0.219208,40423.0,40415.0,0.0019702]
[1645197099340,0.269208,40423.0,40415.0,0.0019702]
[1645197099540,0.269208,40423.0,40417.0,0.00010386]
[1645197099541,0.18483217,40422.0,40417.0,0.00010386]
[1645197099742,0.0454,40421.0,40417.0,0.00010386]
[1645197099941,0.3454,40421.0,40417.0,0.00010386]
[1645197100143,0.3454,40421.0,40409.0,0.23389597]
[1645197100144,1.21191,40420.0,40409.0,0.23389597]
[1645197100393,1.15,40420.0,40409.0,0.23389597]
[1645197100593,0.061909,40419.0,40409.0,0.23389597]
[1645197100790,0.061909,40419.0,40417.0,0.00010386]
[1645197100992,0.0099,40422.0,40417.0,0.00010386]
[1645197101393,0.0099,40422.0,40418.0,0.329185]
[1645197101597,0.74128,40426.0,40410.0,1.614]
[1645197101793,0.0091,40425.0,40410.0,0.1]
[1645197101992,0.19843972,40420.0,40410.0,0.0007382]
[1645197102193,0.123829,40420.0,40410.0,0.0007382]
[1645197102593,0.061915,40419.0,40410.0,0.0007382]
[1645197102792,0.111915,40419.0,40410.0,0.0007382]
[1645197103193,0.111915,40419.0,40413.0,0.26584147]
[1645197103693,0.123828,40419.0,40413.0,0.26584147]
[1645197103893,0.05,40418.0,40413.0,0.26584147]
[1645197104149,0.05,40421.0,40414.0,0.0016]
[1645197104345,0.123828,40421.0,40414.0,0.0016]
[1645197104744,1.83340458,40417.0,40414.0,0.0016]
[1645197104945,1.83340458,40417.0,40412.0,0.20688133]
[1645197105147,1.83340458,40417.0,40410.0,0.0007382]
[1645197105946,1.83340458,40417.0,40412.0,0.30201885]
[1645197106145,0.061911,40420.0,40412.0,0.30201885]
[1645197106345,0.061911,40420.0,40415.0,0.01877218]
[1645197106750,0.95,40419.0,40410.0,0.0007382]
[1645197107348,0.061915,40417.0,40410.0,0.0007382]
[1645197107549,1.061911,40419.0,40410.0,0.0007382]
[1645197107800,1.061911,40419.0,40411.0,0.35251084]
[1645197108393,1.0,40419.0,40410.0,0.0007382]
[1645197109193,1.73026026,40417.0,40410.0,0.0007382]
[1645197109401,0.34316263,40412.0,40410.0,0.0007382]
[1645197109596,0.0098,40416.0,40410.0,0.0007382]
[1645197109795,0.05,40412.0,40410.0,0.0007382]
[1645197110197,0.0098,40416.0,40410.0,0.0007382]
[1645197110198,0.133643,40416.0,40410.0,0.0007382]
[1645197110397,0.23287939,40411.0,40410.0,0.0007382]
[1645197110597,0.06192,40413.0,40410.0,0.0007382]
[1645197110995,0.24915761,40412.0,40410.0,0.0007382]
[1645197111198,0.07,40411.0,40410.0,0.0007382]
[1645197111651,0.23536131,40411.0,40410.0,0.0007382]
[1645197112441,0.29915761,40412.0,40410.0,0.0007382]
[1645197113340,0.24485964,40411.0,40410.0,0.0007382]
[1645197113541,0.29915761,40412.0,40410.0,0.0007382]
[1645197116397,0.29915761,40412.0,40410.0,8.2e-06]
[1645197116701,0.29915761,40412.0,40395.0,0.0815605]
[1645197116702,0.061934,40407.0,40395.0,0.0815605]
[1645197116897,0.3093,40406.0,40395.0,0.0815605]
[1645197117102,0.56738358,40406.0,40395.0,0.0815605]
[1645197117296,0.3093,40406.0,40395.0,0.0815605]
[1645197117498,0.25249434,40403.0,40395.0,0.0815605]
[1645197117698,0.05,40403.0,40395.0,0.0565605]
[1645197117900,0.3,40402.0,40395.0,0.0565605]
[1645197118201,0.10734469,40401.0,40395.0,0.0565605]
[1645197118498,0.123917,40400.0,40395.0,0.0565605]
[1645197118699,0.0454,40399.0,40395.0,0.0565605]
[1645197118901,0.74261,40398.0,40395.0,0.0565605]
[1645197119145,0.78801,40398.0,40395.0,0.0565605]
[1645197119344,0.05,40397.0,40395.0,0.0565605]
[1645197119546,0.74261,40398.0,40395.0,0.0565605]
[1645197119748,0.78801,40398.0,40395.0,0.0565605]
[1645197120142,0.74261,40398.0,40395.0,0.0565605]
[1645197120344,0.78801,40398.0,40395.0,0.0565605]
[1645197120542,0.26356858,40397.0,40395.0,0.0565605]
[1645197120745,0.36356858,40397.0,40395.0,0.0565605]
[1645197121143,0.061949,40396.0,40395.0,0.0565605]
[1645197121344,0.107349,40396.0,40395.0,0.0565605]
[1645197122145,0.38877543,40396.0,40395.0,0.0565605]
[1645197122800,0.061949,40396.0,40395.0,0.0565605]
[1645197123897,0.40479522,40396.0,40395.0,0.0565605]
[1645197124594,0.70479522,40396.0,40395.0,0.0565605]
[1645197124797,0.40479522,40396.0,40395.0,0.0565605]
[1645197125000,0.35479522,40396.0,40395.0,0.0565605]
[1645197125195,0.40479522,40396.0,40395.0,0.0565605]
[1645197127646,0.40479522,40396.0,40395.0,0.0590605]
[1645197128244,0.70479522,40396.0,40395.0,0.0590605]
[1645197128846,0.061949,40396.0,40395.0,0.0590605]
[1645197129249,0.061945,40397.0,40395.0,0.0590605]
[1645197129646,0.74261,40398.0,40397.0,0.12389]
[1645197130302,0.874553,40398.0,40397.0,0.12389]
[1645197130490,1.04845458,40398.0,40397.0,0.12389]
[1645197130889,1.14945458,40398.0,40397.0,0.12389]
[1645197131091,1.14945458,40398.0,40397.0,9e-05]
[1645197131092,1.15560488,40398.0,40397.0,9e-05]
[1645197131289,1.90142087,40398.0,40397.0,9e-05]
[1645197131490,1.60142087,40398.0,40397.0,9e-05]
[1645197132091,1.2,40397.0,40395.0,0.0001505]
[1645197132290,0.37,40396.0,40395.0,0.0001505]
[1645197132490,0.3761503,40396.0,40395.0,0.0001505]
[1645197132691,0.5261503,40396.0,40395.0,0.0001505]
[1645197134546,0.5261503,40396.0,40393.0,0.00010949]
[1645197134746,0.13196421,40394.0,40393.0,0.00010949]
[1645197134948,0.18196421,40394.0,40393.0,0.00010949]
[1645197135147,0.23196421,40394.0,40393.0,0.00010949]
[1645197135348,0.23196421,40394.0,40392.0,0.0020759]
[1645197135552,0.28588121,40394.0,40392.0,0.0020759]
[1645197135950,0.28554432,40394.0,40392.0,0.0020759]
[1645197136148,0.18588121,40394.0,40392.0,0.0020759]
[1645197136350,0.123917,40394.0,40392.0,0.0020759]
[1645197136549,0.061957,40395.0,40392.0,0.0020759]
[1645197136949,0.009,40397.0,40392.0,0.0020759]
[1645197136950,0.001,40394.0,40392.0,0.0020759]
[1645197138398,0.123896,40396.0,40392.0,0.0020759]
[1645197138799,0.05,40395.0,40393.0,0.34353825]
[1645197139399,0.05,40395.0,40392.0,0.00317167]
[1645197139600,0.111943,40395.0,40392.0,0.00317167]
[1645197140001,0.111943,40395.0,40392.0,0.0030759]
[1645197140399,0.061943,40395.0,40392.0,0.3501713]
[1645197140603,0.05,40394.0,40392.0,0.3501713]
[1645197140803,0.061943,40395.0,40392.0,0.3501713]
[1645197141002,0.03774505,40394.0,40392.0,0.3501713]
[1645197141201,0.03774505,40394.0,40393.0,0.22380994]
[1645197141401,0.08774505,40394.0,40393.0,0.22380994]
[1645197141646,0.03774505,40394.0,40393.0,0.22380994]
[1645197142046,0.05010966,40408.0,40395.0,0.85]
[1645197142047,0.114567,40405.0,40395.0,0.85]
[1645197142253,0.00010966,40408.0,40405.0,0.22707909]
[1645197142446,0.009,40416.0,40405.0,0.22707909]
[1645197142447,0.061913,40416.0,40413.0,0.26287648]
[1645197142647,0.0095,40422.0,40413.0,0.26287648]
[1645197143044,0.001,40421.0,40413.0,0.26287648]
[1645197143245,0.001,40421.0,40408.0,0.00020888]
[1645197143449,0.001,40421.0,40407.0,0.00020888]
[1645197143450,0.061907,40420.0,40407.0,0.00020888]
[1645197143845,0.061907,40420.0,40405.0,0.3]
[1645197144246,0.25000379,40415.0,40409.0,0.32392014]
[1645197144447,0.123842,40416.0,40411.0,0.21449581]
[1645197144646,0.061921,40414.0,40411.0,0.21449581]
[1645197144847,0.23654906,40421.0,40411.0,0.21449581]
[1645197145046,0.23754906,40421.0,40407.0,0.00020888]
[1645197145305,0.00010985,40416.0,40405.0,0.00020888]
[1645197145498,0.00010985,40416.0,40403.0,0.0454]
[1645197145699,0.00010985,40416.0,40400.0,0.00020888]
[1645197145700,0.34479124,40406.0,40400.0,0.00020888]
[1645197145899,0.05,40406.0,40399.0,0.00031878]
[1645197146107,0.05,40406.0,40398.0,0.00020888]
[1645197146400,0.229284,40410.0,40397.0,0.00020888]
[1645197146401,0.15553904,40405.0,40397.0,0.00020888]
[1645197146597,0.25553904,40405.0,40399.0,0.00010988]
[1645197146797,0.0099,40404.0,40400.0,0.3318411]
[1645197146998,0.07183597,40404.0,40400.0,0.00020888]